bitfinex-derivatives/quotes_BTCF0:USTF0_20250309
["timestamp","ask_amount","ask_price","bid_price","bid_amount"]
[1741561803966,0.21908,80375.0,80369.0,0.2482]
[1741561804269,0.00011372,80374.0,80369.0,0.2482]
[1741561805064,0.00011372,80374.0,80372.0,0.3608]
[1741561805264,0.00011372,80374.0,80373.0,0.2635]
[1741561805667,0.36091372,80374.0,80363.0,0.00018665]
[1741561805868,0.88471372,80374.0,80363.0,0.00018665]
[1741561806377,0.15336,80373.0,80363.0,0.00018665]
[1741561806669,0.15336,80373.0,80367.0,0.3608]
[1741561806871,0.21908,80375.0,80368.0,0.30829796]
[1741561806872,0.17565365,80375.0,80368.0,0.30829796]
[1741561807170,0.13211358,80375.0,80374.0,0.4852282]
[1741561807369,0.15328,80386.0,80374.0,0.3608]
[1741561807572,0.15328,80386.0,80385.0,0.3608]
[1741561807770,0.15340623,80386.0,80375.0,0.2649]
[1741561807969,0.4259708,80385.0,80376.0,0.2635]
[1741561808171,0.4259708,80385.0,80376.0,0.6243]
[1741561808475,0.4259708,80385.0,80375.0,0.6257]
[1741561808687,0.4259708,80385.0,80377.0,0.12441757]
[1741561808971,0.4259708,80385.0,80376.0,0.2444]
[1741561808972,0.00012623,80386.0,80384.0,0.3608]
[1741561809177,0.00012623,80386.0,80385.0,0.5108]
[1741561809373,0.00012623,80386.0,80384.0,0.3608]
[1741561809572,0.00012623,80386.0,80376.0,0.2664]
[1741561809573,0.3608,80385.0,80376.0,0.2664]
[1741561809880,0.522,80384.0,80376.0,0.2664]
[1741561810072,0.3608,80378.0,80372.0,0.2444]
[1741561810269,0.522,80377.0,80372.0,0.2444]
[1741561810473,0.522,80377.0,80369.0,0.2664]
[1741561810871,0.3608,80370.0,80369.0,0.2664]
[1741561811066,0.15208,80372.0,80368.0,0.33225798]
[1741561811366,0.522,80369.0,80368.0,0.33225798]
[1741561811769,0.15208,80372.0,80368.0,0.33225798]
[1741561812170,0.5109,80371.0,80368.0,0.33225798]
[1741561812574,0.15208,80372.0,80369.0,0.5148]
[1741561812771,0.15108,80371.0,80369.0,0.5148]
[1741561812975,0.15108,80371.0,80369.0,0.2489]
[1741561813280,0.00012623,80386.0,80370.0,0.48522531]
[1741561813469,0.41706,80383.0,80370.0,0.75112531]
[1741561813776,0.41706,80383.0,80370.0,0.6267]
[1741561813977,0.15056,80382.0,80370.0,0.6267]
[1741561814176,0.10701944,80382.0,80377.0,0.3608]
[1741561814473,0.1504,80385.0,80378.0,0.5059]
[1741561814675,0.10685944,80385.0,80378.0,0.5059]
[1741561814882,0.2564,80396.0,80378.0,0.5059]
[1741561814883,0.05645944,80400.0,80399.0,0.1243896]
[1741561815080,0.05645944,80400.0,80399.0,0.7216]
[1741561815379,0.01291888,80400.0,80392.0,0.3608]
[1741561815584,0.3608,80408.0,80392.0,1.1349]
[1741561815770,9.771e-05,80407.0,80393.0,0.48517888]
[1741561816080,0.3608,80429.0,80402.0,0.3608]
[1741561816271,0.1504,80430.0,80418.0,0.3608]
[1741561816471,0.1772867,80421.0,80419.0,0.5166]
[1741561816668,0.13374614,80421.0,80419.0,0.5166]
[1741561816980,0.13519524,80442.0,80420.0,0.12436032]
[1741561817274,0.13519524,80442.0,80434.0,0.3608]
[1741561817472,0.09165468,80442.0,80435.0,0.5048]
[1741561817668,0.020223,80442.0,80435.0,0.5048]
[1741561817877,0.3617538,80446.0,80441.0,0.3608]
[1741561818077,0.3617538,80446.0,80442.0,0.4924]
[1741561818280,0.09925324,80446.0,80445.0,0.3608]
[1741561818469,0.05571268,80446.0,80445.0,0.3608]
[1741561818669,0.012305,80446.0,80445.0,0.3608]
[1741561818875,0.14731232,80450.0,80445.0,0.3608]
[1741561819073,0.15,80466.0,80446.0,0.4924]
[1741561819279,0.15,80466.0,80457.0,0.3608]
[1741561819478,0.15,80466.0,80458.0,0.4924]
[1741561819873,0.00014671,80465.0,80458.0,0.4924]
[1741561820268,0.00014671,80465.0,80459.0,0.01735673]
[1741561820470,0.00014671,80465.0,80460.0,0.01735673]
[1741561820774,0.00014671,80465.0,80461.0,0.52385673]
[1741561820979,0.00014671,80465.0,80462.0,0.01735673]
[1741561821179,0.00014671,80465.0,80463.0,0.01735673]
[1741561821383,0.21888,80468.0,80464.0,0.31083557]
[1741561821384,0.19106776,80468.0,80464.0,0.31083557]
[1741561821578,0.16806776,80468.0,80465.0,0.30523557]
[1741561821774,0.16806776,80468.0,80466.0,0.04593557]
[1741561821971,0.16806776,80468.0,80467.0,0.04593557]
[1741561822173,0.16806776,80468.0,80467.0,0.30523557]
[1741561822372,0.15076,80484.0,80467.0,0.30523557]
[1741561822576,0.00876269,80487.0,80482.0,0.3608]
[1741561822884,0.1,80500.0,80483.0,0.93093557]
[1741561823087,0.1,80500.0,80484.0,0.04593557]
[1741561823283,0.1,80500.0,80499.0,0.3608]
[1741561823284,0.0565094,80500.0,80499.0,0.3608]
[1741561823484,0.0130188,80500.0,80499.0,0.37815673]
[1741561823785,9.602e-05,80500.0,80499.0,0.37815673]
[1741561824083,9.602e-05,80500.0,80499.0,0.73895673]
[1741561824487,9.602e-05,80500.0,80499.0,0.04592331]
[1741561824685,0.48512952,80500.0,80499.0,0.04592331]
[1741561824986,0.87169602,80500.0,80499.0,0.04592331]
[1741561825178,0.66157602,80500.0,80499.0,0.04592331]
[1741561825579,0.15077602,80500.0,80499.0,0.04592331]
[1741561826275,0.4259708,80520.0,80499.0,0.46062213]
[1741561826479,0.15164,80522.0,80508.0,0.3608]
[1741561826681,0.15164,80522.0,80516.0,0.3608]
[1741561826987,0.21884,80524.0,80517.0,0.58784268]
[1741561827283,0.21884,80524.0,80523.0,0.3608]
[1741561827483,0.1910465,80524.0,80523.0,0.44494268]
[1741561827789,0.1910465,80524.0,80523.0,0.53134848]
[1741561828083,0.1910465,80524.0,80523.0,0.12575052]
[1741561828288,0.676043,80524.0,80523.0,0.09982213]
[1741561828483,0.315243,80524.0,80523.0,0.09982213]
[1741561828690,0.1910465,80524.0,80523.0,0.09982213]
[1741561829078,0.14757523,80524.0,80523.0,0.09982213]
[1741561829286,0.14206359,80532.0,80523.0,0.09982213]
[1741561829489,0.14206359,80532.0,80524.0,0.29672331]
[1741561829677,0.2559,80531.0,80525.0,0.04592331]
[1741561829879,0.2559,80531.0,80524.0,0.2508]
[1741561829880,0.6446108,80540.0,80528.0,0.3608]
[1741561830091,0.21864,80559.0,80539.0,0.3608]
[1741561830281,0.6862708,80570.0,80556.0,0.3608]
[1741561830587,0.3608,80589.0,80567.0,0.3608]
[1741561830785,0.6211,80589.0,80574.0,0.3608]
[1741561830978,0.7674448,80590.0,80581.0,0.3608]
[1741561830979,0.341474,80590.0,80581.0,0.3608]
[1741561831197,0.29800273,80590.0,80582.0,0.33932831]
[1741561831388,0.3608,80599.0,80589.0,0.3608]
[1741561831587,0.3608,80615.0,80598.0,0.3608]
[1741561831788,0.05652873,80600.0,80599.0,0.58262831]
[1741561831993,9.494e-05,80600.0,80599.0,0.62742627]
[1741561832288,0.60113953,80620.0,80599.0,0.6240187]
[1741561832491,0.60113953,80620.0,80607.0,0.3608]
[1741561832685,0.21687842,80619.0,80608.0,0.32732831]
[1741561832887,0.21687842,80619.0,80609.0,0.08402831]
[1741561833087,0.21687842,80619.0,80610.0,0.08402831]
[1741561833088,9.608e-05,80618.0,80610.0,0.08402831]
[1741561833393,0.25509608,80618.0,80611.0,0.08402831]
[1741561833588,0.25509608,80618.0,80612.0,0.08402831]
[1741561833790,0.25509608,80618.0,80613.0,0.08402831]
[1741561833985,0.25509608,80618.0,80614.0,0.1254187]
[1741561833986,0.4848563,80615.0,80614.0,0.1254187]
[1741561834393,0.4848563,80615.0,80593.0,0.254]
[1741561834394,0.5108,80615.0,80595.0,0.01880116]
[1741561834582,0.3608,80596.0,80583.0,0.01880116]
[1741561834782,0.0620443,80594.0,80581.0,0.01880116]
[1741561834988,0.3608,80586.0,80580.0,0.01880116]
[1741561835186,0.21856,80586.0,80579.0,0.00950559]
[1741561835395,9.505e-05,80595.0,80590.0,0.1240939]
[1741561835692,0.0001841,80594.0,80591.0,0.2504]
[1741561835989,0.21856,80611.0,80593.0,0.1240899]
[1741561835990,0.4259708,80610.0,80593.0,0.1240899]
[1741561836192,0.21856,80611.0,80607.0,0.3608]
[1741561836392,0.4259708,80630.0,80610.0,0.4228319]
[1741561836585,0.21852,80632.0,80620.0,0.3608]
[1741561836782,0.4259708,80650.0,80622.0,0.3608]
[1741561836987,0.16196,80658.0,80623.0,0.4964]
[1741561837188,0.162,80667.0,80655.0,0.3608]
[1741561837395,0.162,80667.0,80657.0,0.01873668]
[1741561837592,0.162,80667.0,80660.0,0.01873668]
[1741561837793,0.21852,80675.0,80666.0,0.3608]
[1741561837989,0.21852,80675.0,80674.0,0.3608]
[1741561838191,0.21852,80675.0,80667.0,0.4964]
[1741561838192,0.381,80675.0,80669.0,0.01870111]
[1741561838390,0.245,80674.0,80669.0,0.01870111]
[1741561838703,0.245,80674.0,80662.0,0.3608]
[1741561838896,0.1239713,80671.0,80659.0,0.2543]
[1741561839101,0.3608,80661.0,80658.0,0.00927112]
[1741561839289,0.1239963,80654.0,80653.0,0.00018601]
[1741561839492,0.061995,80658.0,80625.0,0.4932]
[1741561839791,0.3608,80652.0,80625.0,0.4932]
[1741561839993,0.4259708,80650.0,80644.0,0.3608]
[1741561840190,0.4259708,80650.0,80626.0,0.12398717]
[1741561840191,0.38258519,80650.0,80645.0,0.2484]
[1741561840600,0.33919958,80650.0,80645.0,0.2484]
[1741561840903,0.00010795,80660.0,80646.0,0.7295964]
[1741561841097,0.17542784,80675.0,80659.0,0.7216]
[1741561841395,0.13204223,80675.0,80660.0,0.4932]
[1741561841586,0.08865662,80675.0,80660.0,0.51188867]
[1741561841787,0.08865662,80675.0,80670.0,0.3608]
[1741561841788,0.04527101,80675.0,80670.0,0.3608]
[1741561841988,0.0001451,80674.0,80672.0,0.3608]
[1741561842196,0.4259708,80690.0,80672.0,0.3608]
[1741561842599,0.4259708,80690.0,80671.0,0.4988]
[1741561842600,0.3608,80683.0,80671.0,0.4988]
[1741561842793,0.65502,80689.0,80671.0,0.8596]
[1741561842794,0.4259708,80681.0,80671.0,0.8596]
[1741561842993,0.65502,80689.0,80679.0,0.3608]
[1741561843196,0.1,80700.0,80679.0,0.3608]
[1741561843197,0.5259708,80700.0,80688.0,0.36041819]
[1741561843392,0.5259708,80700.0,80699.0,0.3608]
[1741561843393,0.05661439,80700.0,80699.0,0.3608]
[1741561843595,0.05661439,80700.0,80688.0,0.36041819]
[1741561843596,0.05661439,80700.0,80689.0,0.2478]
[1741561843897,0.39581397,80710.0,80697.0,0.3608]
[1741561844397,0.0619594,80705.0,80691.0,0.00018589]
[1741561844592,0.1239379,80692.0,80691.0,0.00018589]
[1741561844798,0.2876579,80692.0,80691.0,0.00018589]
[1741561844999,0.123944,80688.0,80687.0,0.00014881]
[1741561845193,0.123944,80688.0,80659.0,0.2478]
[1741561845194,0.3608,80688.0,80662.0,0.3608]
[1741561845395,0.4259708,80672.0,80657.0,0.00942427]
[1741561845596,0.1239769,80667.0,80653.0,0.3608]
[1741561845799,0.4259708,80663.0,80650.0,0.3608]
[1741561845995,0.5061,80662.0,80636.0,0.3608]
[1741561846195,0.00012408,80661.0,80653.0,0.3608]
[1741561846597,0.00012408,80661.0,80660.0,0.3608]
[1741561846795,0.3608,80705.0,80668.0,0.123974]
[1741561847006,0.4259708,80690.0,80679.0,0.3608]
[1741561847309,0.16650029,80712.0,80693.0,0.0619677]
[1741561847499,0.16650029,80712.0,80680.0,0.01713286]
[1741561847500,0.00186029,80712.0,80710.0,0.01874935]
[1741561847698,0.17670798,80713.0,80711.0,0.04645893]
[1741561848003,0.5075,80733.0,80712.0,0.04764872]
[1741561848203,0.16468,80732.0,80724.0,0.3608]
[1741561848403,0.16468,80732.0,80725.0,0.04764872]
[1741561848604,0.5025,80731.0,80730.0,0.01874334]
[1741561848795,0.8633,80731.0,80721.0,0.01874334]
[1741561849104,0.3608,80722.0,80706.0,0.01874831]
[1741561849299,0.4259708,80716.0,80707.0,0.03709058]
[1741561849499,0.4259708,80716.0,80700.0,8.763e-05]
[1741561849500,0.16464,80715.0,80700.0,8.763e-05]
[1741561849701,0.3608,80714.0,80700.0,8.763e-05]
[1741561849904,0.0619563,80709.0,80700.0,8.763e-05]
[1741561850103,0.3608,80703.0,80679.0,0.00915143]
[1741561850299,0.3608,80703.0,80671.0,0.3608]
[1741561850300,0.4259708,80690.0,80671.0,0.3608]
[1741561850610,0.5912908,80690.0,80680.0,0.12389808]
[1741561850797,0.00018589,80689.0,80672.0,0.00018589]
[1741561851006,0.165,80688.0,80672.0,0.00018589]
[1741561851305,0.2539,80687.0,80672.0,0.00018589]
[1741561851500,0.00013751,80686.0,80672.0,0.00018589]
[1741561851811,0.3608,80723.0,80693.0,0.1239357]
[1741561852010,0.4259708,80720.0,80702.0,0.3608]
[1741561852713,0.51704223,80719.0,80703.0,0.00018589]
[1741561852911,0.51704223,80719.0,80718.0,0.3608]
[1741561853206,0.19516,80725.0,80718.0,0.7216]
[1741561853399,0.19516,80725.0,80724.0,0.3608]
[1741561853605,0.36144,80725.0,80711.0,0.3608]
[1741561853811,0.4259708,80720.0,80711.0,0.3608]
[1741561854004,0.4259708,80720.0,80719.0,0.3608]
[1741561854209,0.36144,80725.0,80719.0,0.3608]
[1741561854409,0.15179009,80725.0,80724.0,0.1238888]
[1741561854609,0.15179009,80725.0,80719.0,0.85625918]
[1741561854905,0.52664,80747.0,80719.0,0.73077645]
[1741561855106,0.4259708,80740.0,80735.0,0.3608]
[1741561855299,7.766e-05,80739.0,80722.0,0.00014907]
[1741561855499,0.7867708,80730.0,80729.0,0.00018589]
[1741561855703,0.3608,80730.0,80722.0,0.00014907]
[1741561855900,0.3608,80730.0,80710.0,0.0090863]
[1741561855901,0.0619495,80718.0,80710.0,0.0090863]
[1741561856115,0.3608,80712.0,80710.0,0.0090863]
[1741561856317,0.21812,80711.0,80710.0,0.0090863]
[1741561856611,0.21812,80711.0,80698.0,0.3608]
[1741561856819,0.7867708,80707.0,80698.0,0.3608]
[1741561857005,0.2508,80706.0,80702.0,0.00018589]
[1741561857812,0.123921,80703.0,80702.0,0.00018589]
[1741561858117,0.123921,80703.0,80677.0,0.28714283]
[1741561858118,0.0619632,80700.0,80677.0,0.28714283]
[1741561858316,0.4259708,80690.0,80674.0,0.257]
[1741561858512,0.41568,80699.0,80678.0,0.3608]
[1741561858708,0.3608,80685.0,80674.0,0.257]
[1741561858911,0.4259708,80690.0,80679.0,0.3608]
[1741561859413,0.4259708,80690.0,80674.0,0.3809654]
[1741561859414,0.1239515,80684.0,80676.0,0.00018589]
[1741561859604,0.165,80683.0,80676.0,0.00018589]
[1741561859915,0.0763,80682.0,80676.0,0.00018589]
[1741561860117,0.3608,80677.0,80676.0,0.00018589]
[1741561860304,0.0619833,80674.0,80662.0,0.3608]
[1741561860611,0.0763,80676.0,80662.0,0.3608]
[1741561860913,0.0763,80676.0,80655.0,0.37074063]
[1741561860914,0.3608,80675.0,80655.0,0.37074063]
[1741561861117,0.1239794,80665.0,80664.0,0.01726387]
[1741561861324,0.1239932,80656.0,80655.0,0.36914063]
[1741561861526,0.124047,80621.0,80620.0,8.754e-05]
[1741561861725,0.38333185,80621.0,80620.0,8.754e-05]
[1741561862023,0.33996132,80621.0,80620.0,8.754e-05]
[1741561862225,0.70076132,80621.0,80620.0,8.754e-05]
[1741561862524,0.00018602,80629.0,80620.0,8.754e-05]
[1741561862525,0.00018602,80629.0,80626.0,0.0620191]
[1741561862727,0.16584,80657.0,80651.0,0.1240003]
[1741561862928,0.17661126,80663.0,80662.0,0.123984]
[1741561863228,0.16596,80675.0,80662.0,0.40559796]
[1741561863523,0.21812,80686.0,80674.0,0.3608]
[1741561863730,0.00012189,80685.0,80674.0,0.3608]
[1741561863927,0.3608,80676.0,80672.0,0.00018602]
[1741561864225,0.1239671,80673.0,80672.0,0.00018602]
[1741561864422,0.6438708,80673.0,80641.0,0.3608]
[1741561864619,0.3608,80710.0,80672.0,0.3608]
[1741561864818,0.0619514,80715.0,80689.0,0.1239415]
[1741561864819,0.0591,80709.0,80689.0,0.1239415]
[1741561865026,0.21812,80715.0,80708.0,0.3608]
[1741561865325,0.21812,80735.0,80714.0,0.3608]
[1741561865629,0.4259708,80730.0,80723.0,0.3608]
[1741561865838,0.00018587,80733.0,80724.0,0.32440444]
[1741561866125,0.00018587,80733.0,80732.0,0.3608]
[1741561866325,0.00018587,80733.0,80732.0,0.38980853]
[1741561866529,0.16928,80753.0,80732.0,0.43460649]
[1741561866733,0.21812,80758.0,80752.0,0.3608]
[1741561866918,0.14818673,80767.0,80757.0,0.3608]
[1741561867124,0.21812,80783.0,80766.0,0.3608]
[1741561867318,0.21812,80783.0,80782.0,0.3608]
[1741561867525,0.1747737,80783.0,80782.0,0.47265901]
[1741561867732,0.1314274,80783.0,80782.0,0.43460649]
[1741561868028,0.00018575,80791.0,80782.0,0.49070327]
[1741561868225,0.00018575,80791.0,80783.0,0.07380649]
[1741561868529,0.00018575,80791.0,80790.0,0.3608]
[1741561868729,0.00018575,80791.0,80790.0,0.43460649]
[1741561869129,0.00441303,80820.0,80790.0,0.87723289]
[1741561869332,0.3608,80846.0,80819.0,0.7216]
[1741561869333,0.17012,80839.0,80819.0,0.7216]
[1741561869529,0.1236493,80881.0,80835.0,0.3608]
[1741561869828,0.3608,80883.0,80866.0,0.3608]
[1741561870028,0.21804,80892.0,80867.0,0.31970649]
[1741561870232,0.21804,80892.0,80876.0,0.3608]
[1741561870433,0.00018466,80885.0,80877.0,0.02900853]
[1741561870730,0.3608,80882.0,80878.0,0.02900853]
[1741561871035,0.0596,80881.0,80851.0,0.00946868]
[1741561871234,0.3608,80855.0,80842.0,0.2459]
[1741561871535,0.3448937,80854.0,80842.0,0.2459]
[1741561871723,0.4948937,80854.0,80832.0,0.00925142]
[1741561872031,0.4948937,80854.0,80843.0,0.01581692]
[1741561872032,0.3608,80845.0,80843.0,0.01581692]
[1741561872229,0.23168,80844.0,80835.0,0.00018547]
[1741561872430,0.15,80836.0,80832.0,0.00010598]
[1741561872627,0.15,80836.0,80809.0,0.3262787]
[1741561872628,0.0595,80835.0,80806.0,0.00947425]
[1741561872823,0.4259708,80816.0,80795.0,0.2418]
[1741561873024,0.1675337,80815.0,80814.0,0.1237508]
[1741561873335,0.21788,80837.0,80814.0,0.01767511]
[1741561873636,0.91516,80864.0,80845.0,0.1237033]
[1741561873637,0.17458357,80846.0,80845.0,0.1237033]
[1741561873832,0.13128714,80846.0,80845.0,0.37847511]
[1741561874038,0.13139859,80846.0,80845.0,0.01767511]
[1741561874222,0.08810216,80846.0,80845.0,0.03338018]
[1741561874531,0.19480573,80846.0,80845.0,0.01767511]
[1741561874736,0.55560573,80846.0,80837.0,0.00018559]
[1741561875030,0.3608,80838.0,80810.0,0.2418]
[1741561875223,0.3608,80845.0,80816.0,0.37650507]
[1741561875424,0.4259708,80830.0,80810.0,0.6026]
[1741561875632,0.36061453,80835.0,80816.0,0.01570507]
[1741561875834,0.3608,80865.0,80845.0,0.001]
[1741561876040,0.4259708,80860.0,80846.0,0.6221]
[1741561876238,0.4259708,80860.0,80847.0,0.0618499]
[1741561876239,0.0595,80859.0,80847.0,0.0618499]
[1741561876426,0.01620357,80859.0,80854.0,0.3608]
[1741561876629,0.01620357,80859.0,80855.0,0.06329573]
[1741561876630,0.1236865,80856.0,80855.0,0.06329573]
[1741561876831,0.01620357,80859.0,80855.0,0.06329573]
[1741561876832,0.0771,80858.0,80855.0,0.06329573]
[1741561877146,0.0771,80858.0,80856.0,0.03741004]
[1741561877343,0.3608,80856.0,80834.0,0.01881028]
[1741561877637,0.3608,80837.0,80797.0,0.3608]
[1741561877833,0.1237477,80816.0,80797.0,0.3608]
[1741561878034,1.13254765,80816.0,80791.0,0.2484]
[1741561878232,0.4259708,80807.0,80791.0,0.2484]
[1741561878434,0.4259708,80807.0,80761.0,0.0619159]
[1741561878435,0.1237845,80792.0,80772.0,0.3608]
[1741561878634,0.4259708,80780.0,80772.0,0.3608]
[1741561878834,0.21176,80779.0,80774.0,0.00018559]
[1741561879041,0.21176,80779.0,80774.0,0.24858559]
[1741561879042,0.00011294,80778.0,80774.0,0.24858559]
[1741561879340,0.10107832,80779.0,80774.0,0.00018559]
[1741561879530,0.3608,80775.0,80755.0,0.66489221]
[1741561879738,0.25107832,80779.0,80755.0,0.66489221]
[1741561879739,0.4259708,80765.0,80755.0,0.66489221]
[1741561880040,0.4259708,80765.0,80761.0,0.061916]
[1741561880041,0.1798,80764.0,80761.0,0.061916]
[1741561880238,6.048e-05,80763.0,80756.0,0.2484]
[1741561880427,6.048e-05,80763.0,80755.0,0.66653221]
[1741561880428,0.3608,80757.0,80755.0,0.66653221]
[1741561880632,0.3608,80757.0,80756.0,0.01570507]
[1741561880935,6.048e-05,80763.0,80755.0,0.66649221]
[1741561880936,0.3378,80758.0,80755.0,0.66649221]
[1741561881131,0.0769,80762.0,80755.0,0.66489221]
[1741561881337,0.0769,80762.0,80750.0,0.00178018]
[1741561881639,0.3608,80758.0,80750.0,0.00014018]
[1741561881838,0.0001857,80764.0,80755.0,0.3608]
[1741561882041,0.4259708,80790.0,80778.0,0.1238059]
[1741561882341,0.4259708,80800.0,80789.0,0.3608]
[1741561882541,0.4259708,80800.0,80796.0,0.3608]
[1741561882743,0.4259708,80800.0,80797.0,0.26851409]
[1741561882933,0.2414,80799.0,80798.0,0.02831409]
[1741561883239,0.123786,80791.0,80790.0,0.02849979]
[1741561883440,0.1238075,80777.0,80776.0,0.02831409]
[1741561883643,0.1238075,80777.0,80747.0,0.3608]
[1741561883644,0.0619114,80767.0,80750.0,0.00014018]
[1741561883842,0.3608,80751.0,80737.0,0.3608]
[1741561884038,0.3608,80751.0,80728.0,0.5168]
[1741561884039,0.4259708,80747.0,80728.0,0.5168]
[1741561884239,0.4259708,80738.0,80728.0,0.53250507]
[1741561884537,0.4259708,80738.0,80729.0,0.01567092]
[1741561884735,0.3608,80730.0,80729.0,0.01567092]
[1741561884938,0.75956255,80730.0,80729.0,0.01567092]
[1741561885245,0.90956255,80730.0,80726.0,0.01567092]
[1741561885433,0.1238842,80727.0,80726.0,0.01567092]
[1741561885631,0.39876255,80730.0,80726.0,0.03137599]
[1741561885835,0.39876255,80730.0,80726.0,0.01570507]
[1741561886032,0.35344839,80730.0,80727.0,0.52630507]
[1741561886233,0.35344839,80730.0,80727.0,0.5106]
[1741561886437,0.12924938,80730.0,80729.0,0.4846811]
[1741561886734,0.08589037,80730.0,80728.0,0.01567092]
[1741561886937,0.08589037,80730.0,80729.0,0.2537]
[1741561887335,0.04353136,80730.0,80729.0,0.63020507]
[1741561887944,0.00017235,80730.0,80729.0,0.63020507]
[1741561888739,0.4259708,80739.0,80729.0,0.6145]
[1741561888938,0.4259708,80739.0,80730.0,0.01570507]
[1741561889149,0.4259708,80740.0,80730.0,0.26830507]
[1741561889347,0.4259708,80740.0,80731.0,0.01570507]
[1741561889740,0.4259708,80740.0,80732.0,0.01570507]
[1741561889940,0.4259708,80740.0,80731.0,0.01570507]
[1741561890134,0.4259708,80740.0,80732.0,0.01570507]
[1741561890335,0.5759708,80740.0,80729.0,0.6145]
[1741561890535,0.3608,80738.0,80730.0,0.007]
[1741561890742,0.2551,80737.0,80730.0,0.007]
[1741561890945,0.2551,80737.0,80732.0,0.006]
[1741561891149,0.4269708,80740.0,80733.0,0.2563]
[1741561891150,0.001,80740.0,80733.0,0.2563]
[1741561891448,0.001,80740.0,80733.0,0.5167]
[1741561891640,0.001,80740.0,80733.0,0.2563]
[1741561891840,0.3608,80735.0,80732.0,0.006]
[1741561892140,0.001,80740.0,80732.0,0.006]
[1741561892347,0.001,80740.0,80733.0,0.27200507]
[1741561892738,0.0001857,80741.0,80734.0,0.01570507]
[1741561893147,0.0001857,80741.0,80735.0,0.01570507]
[1741561893350,0.001,80740.0,80734.0,0.01570507]
[1741561893549,0.001,80740.0,80735.0,0.01570507]
[1741561893748,0.001,80740.0,80734.0,0.01570507]
[1741561893944,0.0001857,80741.0,80734.0,0.01870507]
[1741561894151,0.0001857,80741.0,80735.0,0.01570507]
[1741561894544,0.0001857,80741.0,80736.0,0.26710507]
[1741561894752,0.0001857,80741.0,80737.0,0.254]
[1741561895047,0.0001857,80741.0,80737.0,0.26970507]
[1741561895248,0.0001857,80741.0,80738.0,0.2514]
[1741561895448,0.0001857,80741.0,80737.0,0.254]
[1741561895751,0.3608,80740.0,80737.0,0.254]
[1741561896343,0.3608,80740.0,80737.0,0.261]
[1741561896753,0.0001857,80741.0,80737.0,0.261]
[1741561897065,0.0001857,80741.0,80737.0,0.255]
[1741561897945,0.0001857,80741.0,80738.0,0.2558]
[1741561898147,0.0001857,80741.0,80737.0,0.001]
[1741561898148,0.3608,80740.0,80737.0,0.001]
[1741561898649,0.0769,80739.0,80718.0,0.2558]
[1741561898948,0.0001857,80741.0,80728.0,0.3608]
[1741561899148,0.0001857,80741.0,80726.0,0.2658]
[1741561899349,0.3608,80739.0,80737.0,0.002]
[1741561899748,0.0001857,80741.0,80738.0,0.25]
[1741561900360,0.0001857,80741.0,80739.0,0.2624]
[1741561900545,0.0001857,80741.0,80738.0,0.25]
[1741561900950,0.3608,80740.0,80738.0,0.25]
[1741561901455,0.0001857,80741.0,80738.0,0.25]
[1741561901958,0.0001857,80741.0,80739.0,0.2624]
[1741561902252,0.0001857,80741.0,80740.0,0.2617]
[1741561903550,0.17468183,80743.0,80741.0,0.01570507]
[1741561903751,0.4259708,80760.0,80742.0,0.01570507]
[1741561903952,0.6438908,80780.0,80763.0,0.0619143]
[1741561904152,0.57872,80788.0,80773.0,0.3608]
[1741561904352,0.7867708,80780.0,80759.0,0.27440507]
[1741561904660,0.7867708,80780.0,80750.0,0.00014653]
[1741561904661,0.3608,80766.0,80750.0,0.00014653]
[1741561904957,0.4259708,80760.0,80750.0,0.00033223]
[1741561905149,0.5516752,80759.0,80750.0,0.00033223]
[1741561905455,0.21792,80758.0,80751.0,0.01570507]
[1741561905648,0.57872,80758.0,80750.0,0.00033223]
[1741561905851,0.3608,80751.0,80750.0,0.00033223]
[1741561906055,0.46952,80758.0,80750.0,0.00033223]
[1741561906354,0.21792,80758.0,80750.0,0.00033223]
[1741561906653,0.1238473,80751.0,80750.0,0.00033223]
[1741561906952,0.21092,80758.0,80750.0,0.00033223]
[1741561907149,0.21192,80758.0,80750.0,0.00033223]
[1741561907546,0.1238473,80751.0,80750.0,0.00033223]
[1741561907759,0.2516,80757.0,80750.0,0.00033223]
[1741561908060,0.123842,80755.0,80750.0,0.00033223]
[1741561908354,0.2516,80757.0,80750.0,0.00033223]
[1741561908550,0.3608,80751.0,80750.0,0.00033223]
[1741561908755,0.0619214,80754.0,80750.0,0.00033223]
[1741561908953,0.21092,80758.0,80751.0,0.01570507]
[1741561909153,0.1675885,80758.0,80755.0,0.3608]
[1741561909352,0.1675885,80758.0,80756.0,0.66935949]
[1741561909551,0.1745885,80784.0,80757.0,0.723]
[1741561909748,0.17452,80799.0,80783.0,0.3608]
[1741561910050,0.3608,80787.0,80784.0,0.54552099]
[1741561910246,0.1237952,80785.0,80784.0,0.5095]
[1741561910555,0.0001857,80793.0,80784.0,0.253]
[1741561910859,0.0001857,80793.0,80785.0,0.2565]
[1741561911956,0.3608,80786.0,80785.0,0.2565]
[1741561912155,0.0001857,80793.0,80786.0,0.01570507]
[1741561912453,0.0001857,80793.0,80790.0,0.3608]
[1741561912655,0.0001857,80793.0,80791.0,0.4956]
[1741561912849,0.0001857,80793.0,80791.0,0.51130507]
[1741561913046,0.0001857,80793.0,80792.0,0.01570507]
[1741561913455,0.0001857,80793.0,80792.0,0.51130507]
[1741561913664,0.4259708,80800.0,80793.0,0.01570507]
[1741561913953,0.2572,80802.0,80793.0,0.01570507]
[1741561914156,0.3608,80801.0,80792.0,0.2474]
[1741561914458,0.3608,80793.0,80770.0,0.03602099]
[1741561914651,0.4259708,80786.0,80777.0,0.27870507]
[1741561914956,0.4259708,80786.0,80769.0,0.3608]
[1741561914957,0.41338,80785.0,80769.0,0.3608]
[1741561915257,0.1238075,80777.0,80769.0,0.3608]
[1741561915450,0.3608,80780.0,80760.0,0.263]
[1741561915758,0.66508,80785.0,80765.0,0.3608]
[1741561915759,0.4259708,80770.0,80765.0,0.3608]
[1741561915963,0.21788,80779.0,80766.0,0.5051]
[1741561916254,0.39032,80798.0,80773.0,0.7216]
[1741561916460,0.39032,80798.0,80783.0,0.3608]
[1741561916756,0.0001857,80794.0,80784.0,0.5051]
[1741561916953,0.17474887,80798.0,80797.0,0.1237768]
[1741561917145,0.17474887,80798.0,80791.0,0.3608]
[1741561917346,0.17474887,80798.0,80796.0,0.24]
[1741561917754,0.17474887,80798.0,80797.0,0.25780507]